Workbook

Sheet 1. Forside
A1: Greve Spildevand A/S
D8: Bilag A
D13: Indholdsfortegnelse
C16: Fane nr. 2 | D16: Samlet prisloft
C17: Fane nr. 3 | D17: Driftsomkostninger
C18: Fane nr. 4 | D18: Historiske investeringer
C19: Fane nr. 5 | D19: Gennemførte investeringer
C20: Fane nr. 6 | D20: Korrektion investeringer
C21: Fane nr. 7 | D21: Planlagte investeringer
C22: Fane nr. 8 | D22: 1:1 omkostninger
C23: Fane nr. 9 | D23: Miljø- og servicemål
C24: Fane nr. 10 | D24: Klimatilpasning
C25: Fane nr. 11 | D25: Nettofinansielle poster
C26: Fane nr. 12 | D26: Over- eller underdækning
C27: Fane nr. 13 | D27: Kontrol med indtægtsrammen og oversigt over ekstraordinære effektiviseringsgevinster

Sheet 2. Samlet prisloft
A1: ='1. Forside'!A1 -> Greve Spildevand A/S
B4: Fane 2. Samlet prisloft for 2015
B6: Driftsomkostninger
B7: Driftsomkostninger i prisloftet for 2014 | C7: ='3. Driftsomkostninger'!C24 -> 29390722.27 | D7: kr.
B8: Bortfald af væsentlige omkostninger | C8: =-'3. Driftsomkostninger'!C20 -> 0 | D8: kr.
B9: Korrektion for prisudviklingen 2014-2015 | C9: ='3. Driftsomkostninger'!C26 -> 23512.57782 | D9: kr.
B10: Forhøjelse til effektivt niveau iht. benchmarkingen | C10: ='3. Driftsomkostninger'!C32 -> 0 | D10: kr.
B11: Korrektion for generelt effektiviseringskrav | C11: =-'3. Driftsomkostninger'!C38 -> -129319.178 | D11: kr.
B12: Korrektion for individuelt effektiviseringskrav | C12: =-'3. Driftsomkostninger'!C47 -> -1469536.114 | D12: kr.
B13: Driftsomkostninger i alt | C13: =SUM(C7:C12) -> 27815379.56 | D13: kr. | E13: =C13 -> 27815379.56 | F13: kr.
B14: Investeringer
B15: Tillæg for historiske investeringer | C15: ='4. Historiske investeringer'!C9 -> 34610913.61 | D15: kr.
B16: Tillæg for gennemførte investeringer i 2011-2013 | C16: ='5. Gennemførte investeringer'!F30 -> 3676701.233 | D16: kr.
B17: Korrektion af tillæg for planlagte investeringer vedrørende 2013 | C17: ='6. Korrektion investeringer'!C10 -> -339424.5667 | D17: kr.
B18: Tillæg for planlagte investeringer i 2014 og 2015 | C18: ='7. Planlagte investeringer'!F31 -> 1782166.667 | D18: kr.
B19: Investeringstillæg i alt | C19: =SUM(C15:C18) -> 39730356.94 | D19: kr. | E19: =C19 -> 39730356.94 | F19: kr.
B20: Øvrige omkostninger mv.
B21: Tillæg for 1:1 omkostninger i 2015 | C21: ='8. 1-1 omkostninger'!C13 -> 3513296 | D21: kr.
B22: Tillæg vedr. revisorerklæringer og DANVA/FVD-kontingent | C22: ='8. 1-1 omkostninger'!C21 -> 157000 | D22: kr.
B23: Korrektion ift. faktiske 1:1 omkostninger i 2013 | C23: ='8. 1-1 omkostninger'!C27 -> 26508 | D23: kr.
B24: Tillæg for driftsomkostninger til miljø- og servicemål i 2015 | C24: ='9. Miljø- og servicemål'!C8 -> 6000000 | D24: kr.
B25: Korrektion ift. faktiske driftsomkostninger til miljø- og servicemål i 2013 | C25: ='9. Miljø- og servicemål'!C15 -> 3645311 | D25: kr.
B26: Tillæg for driftsomkostninger til medfinansiering af klimatilpasningsprojekter i 2015 | C26: ='10. Klimatilpasning'!C9 -> 0 | D26: kr.
B27: Korrektion ift. faktiske omkostninger til medfinansiering af klimatilpasningsprojekter i 2013 | C27: ='10. Klimatilpasning'!C16 -> 0 | D27: kr.
B28: Tillæg/fradrag for nettofinansielle poster i 2015 | C28: ='11. Nettofinansielle poster'!C9 -> -170000 | D28: kr.
B29: Korrektion ift. faktiske nettofinansielle poster i 2013 | C29: ='11. Nettofinansielle poster'!C16 -> 359981 | D29: kr.
B30: Øvrige omkostninger mv. i alt | C30: =SUM(C21:C29) -> 13532096 | D30: kr. | E30: =C30 -> 13532096 | F30: kr.
B31: Historisk over- eller underdækning
B32: Tillæg/fradrag for over- eller underdækning til og med 2010 | C32: ='12. Over- eller underdækning'!C11 -> 0 | D32: kr. | E32: =C32 -> 0 | F32: kr.
B33: Korrektion i forhold til tidligere indtægtsramme
B34: Korrektion for overholdelse af indtægtsramme i prisloft 2013 | C34: ='13. Kontrol med indtægtsrammen'!E27 -> 16070486.34 | D34: kr. | E34: =C34 -> 16070486.34 | F34: kr.
B35: Samlet prisloft
B36: Indtægtsramme i 2015 | E36: =SUM(E13:E34) -> 97148318.85 | F36: kr.
B37: Debiteret vandmængde i 2013 | E37: 2192094 | F37: m3
B38: Prisloft 2015 | E38: =E36/E37 -> 44.31758804 | F38: kr./m3

Sheet 3. Driftsomkostninger
A1: ='1. Forside'!A1 -> Greve Spildevand A/S
B4: Fane 3. Driftsomkostninger
B6: Driftsomkostningerne i prisloftet for 2014
B7: Korrigerede driftsomkostninger i prisloftet for 2013 (DOiPL 2013) | C7: 48929472 | D7: kr.
B8: inkl. tillæg iht. § 8, stk. 2, pkt. 1 på 536.120 kr.
B9: samt midlertidigt tillæg iht. § 8, stk. 5 på 17.908.867 kr.
B10: Prisfremskrivning 1,5 pct. | C10: =0.015*SUM(C7:C7) -> 733942.08 | D10: kr.
B11: Generelt effektiviseringskrav (0 pct.) | C11: 0 | D11: kr.
B12: Individuelt effektiviseringskrav | C12: -1551030 | D12: kr.
B13: Bortfald af midlertidigt tillæg iht. § 8, stk. 5 (inkl. prisfremskrivning) | C13: =-1.015*17908867 -> -18177500 | D13: kr.
B14: Bortfald af tillæg iht. § 8, stk. 2, pkt. 1 (inkl. prisfremskrivning) | C14: =-1.015*536120 -> -544161.8 | D14: kr.
B15: Driftsomkostningerne i prisloftet for 2014 (DOiPL 2014) (korrigeret for bortfald af midlertidigt tillæg) | C15: =SUM(C7:C14) -> 29390722.27 | D15: kr.
B18: Korrektion for forventet bortfald af væsentlige omkostninger
B19: Selskabets indberettede bortfald af væsentlige omkostninger inden 2015 | C19: 0 | D19: kr.
B20: Korrektion for forventet bortfald | C20: =SUM(C19:C19) -> 0 | D20: kr.
B23: Korrektion for prisudviklingen fra 2014-2015
B24: Driftsomkostningerne i prisloftet for 2014 | C24: =C15-C20 -> 29390722.27 | D24: kr.
B25: Prisudvikling 2014 - 2015 | C25: 0.08 | D25: pct.
B26: Korrektion for prisudvikling | C26: =C24*(C25/100) -> 23512.57782 | D26: kr.
B29: Eventuel forhøjelse til effektivt niveau iht. benchmarkingen
B30: Selskabets effektive driftsomkostninger iht. benchmarkingen | C30: 19145116 | D30: kr.
B31: Selskabets pristalskorrigerede driftsomkostninger i 2015-niveau | C31: =C24+C26 -> 29414234.85 | D31: kr.
B32: Eventuel forhøjelse til effektivt niveau | C32: =IF(C31>C30,0,C30-C31) -> 0 | D32: kr.
B35: Korrektion for generelt effektiviseringskrav
B36: Driftsomkostningerne i prisloftet for 2014 | C36: =C24 -> 29390722.27 | D36: kr.
B37: Generelt effektiviseringskrav | C37: 0.44 | D37: pct.
B38: Endeligt generelt effektiviseringskrav | C38: =C36*(C37/100) -> 129319.178 | D38: kr.
B41: Korrektion for individuelt effektiviseringskrav
B42: Rå effektiviseringspotentiale | C42: 10551269 | D42: kr.
B43: Effektiviseringspotentiale efter eventuel korrektion for særlige forhold | C43: 10245606 | D43: kr.
B44: Effektiviseringspotentiale efter forsigtighedshensyn | C44: 6471837 | D44: kr.
B45: Effektiviseringspotentiale efter eventuel korrektion for sammensætning af signifikante costdrivere | C45: 6471837 | D45: kr.
B46: Umiddelbart effektiviseringskrav | C46: =C45/4 -> 1617959.25 | D46: kr.
B47: Endeligt individuelt effektiviseringskrav | C47: =IF(C46>0.05*C24,0.05*C24,IF(C46<0.01*C24,0,C46)) -> 1469536.114 | D47: kr.

Sheet 4. Historiske investeringer
A1: ='3. Driftsomkostninger'!A1 -> Greve Spildevand A/S
B4: Fane 4. Historiske investeringer
B6: Tillæg for historiske investeringer
B7: Værdi af selskabets materielle anlægsaktiver pr. 1. januar 2010 | C7: 1306625366 | D7: kr.
B8: Den årlige standardafskrivning på de materielle anlægsaktiver iht. POLKA | C8: 34610913.61 | D8: kr.
B9: Tillæg i alt i 2015 | C9: =C8 -> 34610913.61 | D9: kr.

Sheet 5. Gennemførte investeringer
A1: ='4. Historiske investeringer'!A1 -> Greve Spildevand A/S
B4: Fane 5. Gennemførte investeringer i 2010 - 2013
B6: Tillæg for gennemførte investeringer i 2013
B7: Beskrivelse af investeringen | C7: Årstal | D7: Std. levetid (år) | E7: Anskaffelses-pris (kr.) | F7: Afskrivning
B8: Ledningsnet = Ø 200 mm | C8: 2013 | D8: 75 | E8: 12067762 | F8: =E8/D8 -> 160903.4933 | G8: kr.
B9: Forsinkelsesbassiner, lukkede uden automatisk rensning og SRO Miljøklasse B (mindre end 1.000 m3) | C9: 2013 | D9: 50 | E9: 3167309 | F9: =E9/D9 -> 63346.18 | G9: kr.
B10: Indløb-/udløbsarrangement | C10: 2013 | D10: 75 | E10: 3204388 | F10: 42725.17333 | G10: kr.
B11: Pumpestationer m. overbygning (< 20 m2), Konstruktioner | C11: 2013 | D11: 50 | E11: 2076302 | F11: 41526.04 | G11: kr.
B12: Pumpestationer i underjordiske bygværker ( | C12: 2013 | D12: 20 | E12: 2172858 | F12: 108642.9 | G12: kr.
B13: Pumpestationer i underjordiske bygværker ( | C13: 2013 | D13: 10 | E13: 1299754 | F13: 129975.4 | G13: kr.
B14: Arbejdsplads | C14: 2013 | D14: 5 | E14: 254320 | F14: 50864 | G14: kr.
B15: Strømpeforing = Ø 200 mm | C15: 2013 | D15: 50 | E15: 2827885 | F15: 56557.7 | G15: kr.
B16: Strømpeforing = Ø 200 mm | C16: 2013 | D16: 50 | E16: 91480 | F16: 1829.6 | G16: kr.
B17: Pumpestationer i underjordiske bygværker ( | C17: 2013 | D17: 50 | E17: 34707 | F17: 694.14 | G17: kr.
B18: Pumpestationer i underjordiske bygværker ( | C18: 2013 | D18: 50 | E18: 233990 | F18: 4679.8 | G18: kr.
B19: Pumpestationer i underjordiske bygværker ( | C19: 2013 | D19: 50 | E19: 85410 | F19: 1708.2 | G19: kr.
B20: Indløb-/udløbsarrangement | C20: 2013 | D20: 75 | E20: 72453 | F20: 966.04 | G20: kr.
B21: Pumpestationer i underjordiske bygværker ( | C21: 2013 | D21: 20 | E21: 194935 | F21: 9746.75 | G21: kr.
B22: Pumpestationer i underjordiske bygværker ( | C22: 2013 | D22: 20 | E22: 16168 | F22: 808.4 | G22: kr.
B23: Pumpestationer i underjordiske bygværker ( | C23: 2013 | D23: 20 | E23: 163116 | F23: 8155.8 | G23: kr.
B24: Pumpestationer i underjordiske bygværker ( | C24: 2013 | D24: 10 | E24: 71292 | F24: 7129.2 | G24: kr.
B25: Pumpestationer i underjordiske bygværker ( | C25: 2013 | D25: 10 | E25: 95073 | F25: 9507.3 | G25: kr.
B26: Pumpestationer i underjordiske bygværker ( | C26: 2013 | D26: 10 | E26: 153951 | F26: 15395.1 | G26: kr.
B27: Arbejdsplads | C27: 2013 | D27: 5 | E27: 19200 | F27: 3840 | G27: kr.
B28: Tillæg for 2013 | F28: =SUM(F8:F27) -> 719001.2167 | G28: kr.
B29: Tillæg for 2010 - 2012 | F29: 2957700.017 | G29: kr.
B30: Samlet tillæg for gennemførte investeringer | F30: =F28+F29 -> 3676701.233 | G30: kr.

Sheet 6. Korrektion investeringer
A1: ='5. Gennemførte investeringer'!A1 -> Greve Spildevand A/S
B4: Fane 6. Korrektion af tillæg for planlagte investeringer
B6: Korrektion af tillæg for planlagte investeringer vedr. 2013
B7: Tillæg for planlagte investeringer i 2013 i prisloft 2013 | C7: 750936 | D7: kr.
B8: Tillæg for planlagte investeringer i 2013 i prisloft 2014 | C8: 1026491 | D8: kr.
B9: Selskabets faktiske afskrivninger på gennemførte investeringer i 2013 | C9: ='5. Gennemførte investeringer'!F28 -> 719001.2167 | D9: kr.
B10: Korrektion af tillæg for planlagte investeringer vedr. 2013 | C10: =C9-C7+C9-C8 -> -339424.5667 | D10: kr.

Sheet 7. Planlagte investeringer
A1: ='6. Korrektion investeringer'!A1 -> Greve Spildevand A/S
B4: Fane 7. Planlagte investeringer
B6: Tillæg for planlagte investeringer i 2014 og 2015
B7: Beskrivelse af investeringen | C7: Årstal | D7: Std. levetid (år) | E7: Anskaffelses-pris (kr.) | F7: Afskrivning
B8: Ledningsnet = Ø 200 mm | C8: 2014 | D8: 75 | E8: 34765000 | F8: =E8/D8 -> 463533.3333 | G8: kr.
B9: Jordbassin Klasse B | C9: 2014 | D9: 50 | E9: 7800000 | F9: =E9/D9 -> 156000 | G9: kr.
B10: Pumpestationer i underjordiske bygværker ( | C10: 2014 | D10: 50 | E10: 9715000 | F10: =E10/D10 -> 194300 | G10: kr.
B11: Indløb-/udløbsarrangement | C11: 2014 | D11: 75 | E11: 950000 | F11: 12666.66667 | G11: kr.
B12: Pumpestationer i brønde (< 6,25 m2), Mek/EL | C12: 2014 | D12: 20 | E12: 6150000 | F12: 307500 | G12: kr.
B13: Pumpestationer i underjordiske bygværker ( | C13: 2014 | D13: 10 | E13: 1050000 | F13: 105000 | G13: kr.
B14: Strømpeforing = Ø 200 mm | C14: 2014 | D14: 50 | E14: 3000000 | F14: 60000 | G14: kr.
B15: Strømpeforing = Ø 200 mm | C15: 2014 | D15: 50 | E15: 500000 | F15: 10000 | G15: kr.
B16: Pumpestationer i brønde (< 6,25 m2), Mek/EL | C16: 2014 | D16: 20 | E16: 300000 | F16: 15000 | G16: kr.
B17: Pumpestationer i brønde (< 6,25 m2), SRO | C17: 2014 | D17: 20 | E17: 200000 | F17: 10000 | G17: kr.
B18: Pumpestationer i brønde (< 6,25 m2), Mek/EL | C18: 2014 | D18: 20 | E18: 300000 | F18: 15000 | G18: kr.
B19: Pumpestationer i brønde (< 6,25 m2), SRO | C19: 2014 | D19: 10 | E19: 50000 | F19: 5000 | G19: kr.
B20: Ledningsnet = Ø 200 mm | C20: 2015 | D20: 75 | E20: 8650000 | F20: 115333.3333 | G20: kr.
B21: Jordbassin Klasse B | C21: 2015 | D21: 50 | E21: 3250000 | F21: 65000 | G21: kr.
B22: Pumpestationer m. overbygning (< 20 m2), Konstruktioner | C22: 2015 | D22: 50 | E22: 4400000 | F22: 88000 | G22: kr.
B23: Indløb-/udløbsarrangement | C23: 2015 | D23: 75 | E23: 550000 | F23: 7333.333333 | G23: kr.
B24: Pumpestationer i brønde (< 6,25 m2), Mek/EL | C24: 2015 | D24: 20 | E24: 850000 | F24: 42500 | G24: kr.
B25: Strømpeforing = Ø 200 mm | C25: 2015 | D25: 50 | E25: 3000000 | F25: 60000 | G25: kr.
B26: Strømpeforing = Ø 200 mm | C26: 2015 | D26: 50 | E26: 500000 | F26: 10000 | G26: kr.
B27: Pumpestationer i brønde (< 6,25 m2), Mek/EL | C27: 2015 | D27: 20 | E27: 300000 | F27: 15000 | G27: kr.
B28: Pumpestationer i brønde (< 6,25 m2), SRO | C28: 2015 | D28: 10 | E28: 250000 | F28: 25000 | G28: kr.
B29: Tillæg for 2014 | F29: =SUMIF(C8:C28,"2014",F8:F28) -> 1354000 | G29: kr.
B30: Tillæg for 2015 | F30: =SUMIF(C8:C28,"2015",F8:F28) -> 428166.6667 | G30: kr.
B31: Tillæg i alt | F31: =F29+F30 -> 1782166.667 | G31: kr.

Sheet 8. 1-1 omkostninger
A1: ='7. Planlagte investeringer'!A1 -> Greve Spildevand A/S
B4: Fane 8. 1:1 omkostninger
B6: Tillæg for budgetterede 1:1 omkostninger i 2015
B7: Betaling til Forsyningssekretariatet | C7: 33000 | D7: kr.
B8: Spildevandsafgift | C8: 800000 | D8: kr.
B9: Selskabskatter | C9: 1983000 | D9: kr.
B10: Køb af varer og tjenesteydelser hos et andet prisloftreguleret vandselskab | C10: 450000 | D10: kr.
B11: Tjenestemandspensioner | C11: 187296 | D11: kr.
B12: Ejendomsskatter | C12: 60000 | D12: kr.
B13: Tillæg i alt | C13: =SUM(C7:C12) -> 3513296 | D13: kr.
B18: Tillæg for budgetterede nødvendige udgifter til revisorerklæringer samt ordinært medlemskab af DANVA og FVD i 2015
B19: Betaling for ordinært medlemskab af DANVA/FVD | C19: 113000 | D19: kr.
B20: Betaling for revisorerklæringer | C20: 44000 | D20: kr.
B21: Tillæg i alt | C21: =SUM(C19:C20) -> 157000 | D21: kr.
B24: Korrektion af tillæg for faktiske 1:1 omkostninger (inkl. revisorerklæringer og ordinært medlemskab af DANVA/FVD) i 2013
B25: Selskabets faktiske 1:1 omkostninger mv. i 2013, jf. reguleringsregnskabet | C25: 1621804 | D25: kr.
B26: Tillæg for budgetterede 1:1 omkostninger mv. i prisloft 2013 | C26: 1595296 | D26: kr.
B27: Korrektion af tillæg for budgetterede 1:1 omkostninger mv. i 2013 | C27: =C25-C26 -> 26508 | D27: kr.

Sheet 9. Miljø- og servicemål
A1: ='8. 1-1 omkostninger'!A1 -> Greve Spildevand A/S
B4: Fane 9. Driftsomkostninger til miljø- og servicemål
B6: Tillæg for budgetterede driftsomkostninger til miljø- og servicemål i 2015
B7: Indsats mod oversvømmelser | C7: 6000000 | D7: kr.
B8: Tillæg i alt | C8: =SUM(C7:C7) -> 6000000 | D8: kr.
B12: Korrektion af tillæg for faktiske driftsomkostninger til miljø- og servicemål i 2013
B13: Selskabets faktiske driftsomkostninger til miljø- og servicemål i 2013, jf. reguleringsregnskabet | C13: 6448207 | D13: kr.
B14: Tillæg for budgetterede driftsomkostninger til miljø- og servicemål i prisloft 2013 | C14: 2802896 | D14: kr.
B15: Korrektion af tillæg for budgetterede driftsomkostninger til miljø- og servicemål i 2013 | C15: =C13-C14 -> 3645311 | D15: kr.

Sheet 10. Klimatilpasning
A1: ='9. Miljø- og servicemål'!A1 -> Greve Spildevand A/S
B4: Fane 10. Medfinansiering af klimatilpasningsprojekter
B7: Tillæg for budgetterede omkostninger til medfinansiering af klimatilpasningsprojekter i 2015
C8: 0 | D8: kr.
B9: Tillæg i alt | C9: =SUM(C8:C8) -> 0 | D9: kr.
B13: Korrektion af tillæg for faktiske omkostninger til medfinansiering af klimatilpasningsprojekter i 2013
B14: Selskabets faktiske driftsomkostninger til klimatilpasningsprojekter i 2013, jf. reguleringsregnskabet | C14: 0 | D14: kr.
B15: Tillæg for budgetterede driftsomkostninger til klimatilpasningsprojekter i prisloft 2013 | C15: 0 | D15: kr.
B16: Korrektion af tillæg for budgetterede omkostninger til klimatilpasningsprojekter i 2013 | C16: =C14-C15 -> 0 | D16: kr.

Sheet 11. Nettofinansielle poster
A1: ='10. Klimatilpasning'!A1 -> Greve Spildevand A/S
B4: Fane 11. Nettofinansielle poster
B6: Tillæg for budgetterede nettofinansielle poster i 2015
B7: Budgetterede renteudgifter og gebyrer i 2015 | C7: 0 | D7: kr.
B8: Budgetterede renteindtægter i 2015 | C8: 170000 | D8: kr.
B9: Tillæg/fradrag i alt | C9: =C7-C8 -> -170000 | D9: kr.
B13: Korrektion af tillæg for faktiske nettofinansielle poster i 2013
B14: Selskabets faktiske nettofinansielle poster i 2013, jf. reguleringsregnskabet | C14: 274981 | D14: kr.
B15: Tillæg for budgetterede nettofinansielle poster i prisloft 2013 | C15: -85000 | D15: kr.
B16: Korrektion af tillæg for budgetterede nettofinansielle poster i 2013 | C16: =C14-C15 -> 359981 | D16: kr.

Sheet 12. Over- eller underdækning (hidden)
A1: ='11. Nettofinansielle poster'!A1 -> Greve Spildevand A/S
B4: Fane 12. Over- eller underdækning til og med 2010
B6: Tillæg/fradrag for over- eller underdækning til og med 2010
B7: Opgjort over- eller underdækning per 31. december 2010 | C7: 0 | D7: kr.
B8: Heraf beløb indregnet i prislofterne for 2012 - 2014 | C8: 0 | D8: kr.
B9: Endnu ikke indregnet over- eller underdækning | C9: =C7-C8 -> 0 | D9: kr.
B10: Resterende indregningsperiode (fastsat i prisloftet for 2012) | C10: 0 | D10: år
B11: Tillæg/fradrag i alt | C11: =IF(C7=0,0,C9/C10) -> 0 | D11: kr.

Sheet 13. Kontrol med indtægtsrammen
A1: ='12. Over- eller underdækning'!A1 -> Greve Spildevand A/S
B4: Fane 13. Korrektion for overholdelse af indtægtsrammen i prisloftet for 2013
B6: Samlet opgørelse vedrørende overholdelse af indtægtsrammen i prisloftet for 2013
B7: Indtægtsramme i prisloftet for 2013 | E7: 94218779.3 | F7: kr.
B8: Ikke anvendt likviditet vedrørende investeringer i 2013
B9: Tillæg for historiske investeringer | C9: 35051403.95 | D9: kr.
B10: Tillæg for gennemførte investeringer i 2011 | C10: 2176491 | D10: kr.
B11: Korrektion af tillæg for planlagte investeringer i 2011 | C11: 915246 | D11: kr.
B12: Tillæg for planlagte investeringer i 2012 og 2013 | C12: 1855673 | D12: kr.
B13: Indtægter fra tilslutningsbidrag | C13: 9126297 | D13: kr.
B14: Indtægter fra salg af anlægsaktiver | C14: 0 | D14: kr.
B15: Erstatninger vedr. anlægsaktiver mv. | C15: 0 | D15: kr.
B16: Ekstraordinær effektiviseringsgevinst anvendt til investeringer | C16: 0 | D16: kr.
B17: Udgifter til investeringer | C17: -36999209 | D17: kr.
B18: Ikke anvendt likviditet vedr. investeringer i alt | C18: =SUM(C9:C17) -> 12125901.95 | D18: kr. | E18: =IF(C18<0,0,-C18) -> -12125901.95 | F18: kr.
B19: Ekstraordinære effektiviseringsgevinster anvendt til takstnedsættelse
B20: Ekstraordinær effektiviseringsgevinst anvendt til takstnedsættelse | C20: 0 | D20: kr. | E20: =-C20 -> 0 | F20: kr.
B21: Korrektion af ikke opkrævet tillæg fra 2011 i prisloft 2013
B22: Korrektion af ikke opkrævet tillæg fra 2011 i prisloft 2013 | C22: 0 | D22: kr. | E22: =-C22 -> 0 | F22: kr.
B23: Indtægter fra primære aktiviteter mv.
B24: Indtægter fra kubikmetertakster, faste takster, særbidrag, målergebyrer samt andre takster og gebyrer | C24: 66022391 | D24: kr.
B25: Andre indtægter i prisloftåret, som selskabet har opnået i forbindelse med eller som følge af selskabets primære aktiviteter | C25: 0 | D25: kr.
B26: Indtægter fra primære aktiviteter mv. i alt | C26: =SUM(C24:C25) -> 66022391 | D26: kr. | E26: =-C26 -> -66022391 | F26: kr.
B27: Tillæg/fradrag i prisloftet for 2015 i alt | E27: =E7+E18+E20+E22+E26 -> 16070486.34 | F27: kr.
B31: Oversigt over ekstraordinære effektiviseringsgevinster
C33: 2012 | E33: 2013 | G33: 2014 | I33: 2015 | K33: 2016
B34: Indhentet ekstraordinær effektiviseringsgevinst | C34: 0 | D34: kr. | E34: 13655240 | F34: kr. | H34: kr. | J34: kr. | L34: kr.
B35: Gevinst anvendt til investeringer | C35: 0 | D35: kr. | E35: 0 | F35: kr. | H35: kr. | J35: kr. | L35: kr.
B36: Gevinst anvendt til takstnedsættelse | C36: 0 | D36: kr. | E36: 0 | F36: kr. | H36: kr. | J36: kr. | L36: kr.
B37: Korrektion for effektiviseringsgevinst der ikke er anvendt inden 4 år | C37: 0 | D37: kr. | E37: 0 | F37: kr. | H37: kr. | J37: kr. | K37: =IF(C38>SUM(E35:I36),C38-SUM(E35:I36),0)*-1 -> 0 | L37: kr.
B38: Resterende gevinst | C38: =C34-C35-C36 -> 0 | D38: kr. | E38: =C38+E34-E35-E36 -> 13655240 | F38: kr. | G38: =E38+G34-G35-G36 -> 13655240 | H38: kr. | I38: =G38+I34-I35-I36 -> 13655240 | J38: kr. | K38: =I38+K34-K35-K36+K37 -> 13655240 | L38: kr.
